Cogmind - Beta 12 @@@ ROGUE MODE // 2023.05.05 @ 07:59:17 Player: Mr Goldstein Result: Self-destructed Performance ------------- Evolutions (3) 1500 Regions Visited (11) 2200 Robots Destroyed (9) 45 Value Destroyed (122) 122 Prototype IDs (35) 700 Alien Tech Used (0) 0 Bonus (800) 800 TOTAL SCORE: 5367 Bonus ------- Pacifist 200 Aligned with FarCom 300 Met Data Miner 300 Cogmind --------- Core Integrity 253/700 Matter 137/300 Energy 97/100 System Corruption 6% Temperature Cool (0) Movement Core (50) Location -7/Data Miner Parts ------- > --- POWER (2) -------- (None) > --- PROPULSION (2) --- Light Treads Flexi-carbon Leg > --- UTILITY (7) ------ Machine Analyzer Hacking Suite System Shield > --- WEAPON (2) ------- Heavy Flail > --- INVENTORY (5) ---- Rocket Launcher Deploy-a-Sentry Deploy-a-Sentry Deploy-a-Sentry Peak State ------------ > --- POWER ------------ (None) > --- PROPULSION ------- Gravmag System Gravmag System > --- UTILITY ---------- Machine Analyzer System Shield System Shield > --- WEAPON ----------- Great Maul > --- INVENTORY -------- Rocket Launcher Deploy-a-Sentry Deploy-a-Sentry Deploy-a-Sentry [Rating: 22] Favorites ----------- Power None Propulsion Light Treads Treads Light Treads Leg Flexi-carbon Leg Hover Unit Gravmag System Utility System Shield Processor Machine Analyzer Hackware System Shield Weapon Mini Grenade Launcher Launcher Mini Grenade Launcher Impact Weapon Great Maul Build | -11 -10 -10 -9 -9 -9 -8 -8 -7 -7 -7 -7 ------- Run | Jun Mat Min Mat Min Exi Min Mat Fac Low Low Dat Slots Evolved 6 | . . . 2 . . . 2 2 . . . Power 1 | . . . . . . . 1 . . . . Propulsion . | . . . . . . . . . . . . Utility 5 | . . . 2 . . . 1 2 . . . Weapon . | . . . . . . . . . . . . Parts Attached 25 | 2 . . 2 2 3 . 1 12 . 2 1 Power . | . . . . . . . . . . . . Engine . | . . . . . . . . . . . . Core . | . . . . . . . . . . . . Reactor . | . . . . . . . . . . . . Propulsion 9 | 2 . . . . . . . 5 . 2 . Treads 4 | 2 . . . . . . . 1 . 1 . Leg 1 | . . . . . . . . . . 1 . Wheel . | . . . . . . . . . . . . Hover 4 | . . . . . . . . 4 . . . Flight . | . . . . . . . . . . . . Utility 6 | . . . 1 . 3 . . 2 . . . Device . | . . . . . . . . . . . . Storage . | . . . . . . . . . . . . Processor 1 | . . . 1 . . . . . . . . Hackware 5 | . . . . . 3 . . 2 . . . Protection . | . . . . . . . . . . . . Artifact . | . . . . . . . . . . . . Weapon 10 | . . . 1 2 . . 1 5 . . 1 Energy Gun . | . . . . . . . . . . . . Energy Cannon . | . . . . . . . . . . . . Ballistic Gun . | . . . . . . . . . . . . Ballistic Cannon . | . . . . . . . . . . . . Launcher 4 | . . . 1 2 . . 1 . . . . Special Weapon . | . . . . . . . . . . . . Impact Weapon 6 | . . . . . . . . 5 . . 1 Slashing Weapon . | . . . . . . . . . . . . Piercing Weapon . | . . . . . . . . . . . . Special Melee Weapon . | . . . . . . . . . . . . Unidentified Prototypes 1 | . . . . . . . . 1 . . . Parts Lost 9 | . . . . 1 . 2 1 3 . 2 . Power . | . . . . . . . . . . . . Propulsion 5 | . . . . 1 . . 1 1 . 2 . Utility 3 | . . . . . . 2 . 1 . . . Weapon 1 | . . . . . . . . 1 . . . Highest Loss Streak 2 | . . . . 1 . 2 1 1 . 1 . To Critical Strikes . | . . . . . . . . . . . . Average Slot Usage (%) 35 | . 28 28 32 34 47 55 24 36 38 29 40 Treads 9 | . 28 28 22 20 11 11 6 4 . 1 7 Hover 4 | . . . . . . . . 8 15 4 . Processor 8 | . . . 10 11 11 11 9 7 7 7 7 Hackware 11 | . . . . . 21 33 9 13 15 15 15 Naked Turns . | . . . . . . . . . . . . Heaviest Build 4 | . . . . 4 1 . . 4 . . 3 Greatest Support 8 | 3 3 3 3 3 3 3 3 8 3 3 3 Greatest Overweight (x) 1 | . . . . 1 . . . 1 . . . Average Overweight (x) . | . . . . . . . . . . . . Largest Inventory Capacity 5 | 5 5 5 5 5 5 5 5 5 5 5 5 Average Capacity 5 | 5 5 5 5 5 5 5 5 5 5 5 5 Most Carried 5 | . . . 5 5 5 5 5 5 5 5 5 Average Carried 4 | . . . 4 4 4 5 4 4 5 5 4 Final Capacity 5 | 5 5 5 5 5 5 5 5 5 5 5 5 Final Carried 5 | . . . 5 5 5 5 5 5 5 5 4 Class Distribution -------------------- 58% | Hacker-Mutant 41% | Mutant Dominant Class ---------------- Mutant | -10/Materials Mutant | -10/Mines Mutant | -9/Materials Mutant | -9/Mines Hacker-Mutant | -9/Exiles Hacker-Mutant | -8/Mines Mutant | -8/Materials Hacker-Mutant | -7/Factory Hacker-Mutant | -7/Lower Caves Hacker-Mutant | -7/Lower Caves Hacker-Mutant | -7/Data Miner Resources | -11 -10 -10 -9 -9 -9 -8 -8 -7 -7 -7 -7 ----------- Run | Jun Mat Min Mat Min Exi Min Mat Fac Low Low Dat Matter Collected 321 | 109 . . . 112 . . . 51 47 2 . Remotely . | . . . . . . . . . . . . Salvage Created 87 | . . . 10 15 . . 11 51 . . . Parts 12 | . . . 7 . . . 4 1 . . . Haulers Intercepted . | . . . . . . . . . . . . Recyclers Shooed . | . . . . . . . . . . . . Parts Field Recycled . | . . . . . . . . . . . . Retrieved Matter . | . . . . . . . . . . . . Parts Self-Destructed 5 | . . . . . . . . . . 5 . Prevented . | . . . . . . . . . . . . Kills | -11 -10 -10 -9 -9 -9 -8 -8 -7 -7 -7 -7 ------- Run | Jun Mat Min Mat Min Exi Min Mat Fac Low Low Dat Combat Hostiles Destroyed 10 | . . . 3 4 . . 3 . . . . AOE 10 | . . . 3 4 . . 3 . . . . Classes Destroyed 4 | . . . 2 1 . . . 1 . . . Worker 1 | . . . . . . . . 1 . . . Watcher 2 | . . . 1 . . . . 1 . . . Swarmer 6 | . . . 3 . . . 3 . . . . Assembled 4 | . . . . 4 . . . . . . . Best Kill Streak 4 | . . . 4 4 . . 3 1 . . . Combat Bots Only 4 | . . . 3 4 . . 3 . . . . Max Kills in Single Turn 2 | . . . 2 1 . . 2 1 . . . Gunslinging . | . . . . . . . . . . . . Exploded 2 | . . . 2 1 . . 2 . . . . Melee . | . . . . . . . . . . . . Uniques/NPCs Destroyed . | . . . . . . . . . . . . Combat | -11 -10 -10 -9 -9 -9 -8 -8 -7 -7 -7 -7 -------- Run | Jun Mat Min Mat Min Exi Min Mat Fac Low Low Dat Damage Taken 1453 | . 16 16 142 218 . 79 134 477 47 324 . Core 712 | . 8 16 72 70 . 15 84 164 31 252 . Absorbed by Shields . | . . . . . . . . . . . . Core Remaining (%) 83 | 100 . 90 . . . 60 84 . . . . Volleys Fired 8 | . . . 2 4 . . 2 . . . . Largest 1 | . . . 1 1 . . 1 . . . . Hottest 33 | . . . 30 30 . . 33 . . . . Shots Fired 8 | . . . 2 4 . . 2 . . . . Gun . | . . . . . . . . . . . . Cannon . | . . . . . . . . . . . . Launcher 8 | . . . 2 4 . . 2 . . . . Special . | . . . . . . . . . . . . Kinetic . | . . . . . . . . . . . . Thermal . | . . . . . . . . . . . . Explosive 8 | . . . 2 4 . . 2 . . . . Electromagnetic . | . . . . . . . . . . . . Robot Hit Streak 2 | . . . . 2 . . 1 . . . . Robot Miss Streak 1 | . . . . 1 . . 1 . . . . Penetration Max . | . . . . . . . . . . . . Secondary Targets . | . . . . . . . . . . . . Shots Hit Robots 7 | . . . . 2 . . 1 3 . . 1 Core Hits 16 | . . . 4 7 . 1 3 1 . . . Critical Kills . | . . . . . . . . . . . . Critical Parts Destroyed 1 | . . . . . . . . 1 . . . Critical Strikes 1 | . . . . . . . . 1 . . . Smash 1 | . . . . . . . . 1 . . . Melee Attacks 10 | . . . . . . . . 9 . . 1 Impact 10 | . . . . . . . . 9 . . 1 Slashing . | . . . . . . . . . . . . Piercing . | . . . . . . . . . . . . Sneak Attacks 2 | . . . . . . . . 1 . . 1 Combat Hostiles . | . . . . . . . . . . . . Follow-up Attacks . | . . . . . . . . . . . . Damage Inflicted 1028 | . . . 221 186 . 21 245 245 . . 110 Guns . | . . . . . . . . . . . . Cannons . | . . . . . . . . . . . . Explosions 652 | . . . 221 186 . . 245 . . . . Melee 323 | . . . . . . . . 213 . . 110 Ramming 53 | . . . . . . 21 . 32 . . . Kinetic . | . . . . . . . . . . . . Thermal . | . . . . . . . . . . . . Explosive 652 | . . . 221 186 . . 245 . . . . Electromagnetic . | . . . . . . . . . . . . Impact 323 | . . . . . . . . 213 . . 110 Slashing . | . . . . . . . . . . . . Piercing . | . . . . . . . . . . . . Highest Corruption 6 | . . . 1 1 1 1 . 6 6 6 6 Average Corruption 3 | . . . 1 1 1 1 . 5 6 6 6 Corruption Purged . | . . . . . . . . . . . . Corruption Blocked . | . . . . . . . . . . . . Effects 15 | . . . . 1 1 . . 7 2 3 1 Message Errors 2 | . . . . . . . . 1 . 1 . Matter Fused 3 | . . . . . . . . 2 . 1 . Heat Flow Errors 3 | . . . . . . . . 2 1 . . Energy Discharges 3 | . . . . . . . . 1 1 . 1 Data Loss (minor) 4 | . . . . 1 1 . . 1 . 1 . Overload Shots . | . . . . . . . . . . . . Overflow Damage 240 | . . . . 14 . . 51 75 . . 100 Projectiles . | . . . . . . . . . . . . Explosions 65 | . . . . 14 . . 51 . . . . Melee 175 | . . . . . . . . 75 . . 100 Knockbacks 1 | . . . . . . . . . . . 1 Impact 1 | . . . . . . . . . . . 1 Kinetic . | . . . . . . . . . . . . Secondary . | . . . . . . . . . . . . Self-Inflicted Damage 93 | . . . . 71 . 7 . 15 . . . Shots 2 | . . . . 2 . . . . . . . Rammed 13 | . . . . . . 8 . 5 . . . Targets Rammed 13 | . . . . . . 8 . 5 . . . Kicked . | . . . . . . . . . . . . Crushed . | . . . . . . . . . . . . Highest Temperature 212 | . . . . 2 . . 1 212 107 2 . Average Temperature 69 | . . . . 2 . . 1 94 56 2 . Received Heat Transfer 297 | . . 9 39 72 . . 9 90 9 69 . Siege Activations . | . . . . . . . . . . . . Robots Corrupted . | . . . . . . . . . . . . Combat Hostiles . | . . . . . . . . . . . . Parts Fried . | . . . . . . . . . . . . Impact Corruptions 4 | . . . . . . . . 3 . . 1 Robots Melted . | . . . . . . . . . . . . Combat Hostiles . | . . . . . . . . . . . . Parts Melted . | . . . . . . . . . . . . Heat Transferred . | . . . . . . . . . . . . Parts Sabotaged . | . . . . . . . . . . . . Parts Stolen . | . . . . . . . . . . . . Parts Stripped . | . . . . . . . . . . . . Power Chain Reactions . | . . . . . . . . . . . . Missiles Intercepted . | . . . . . . . . . . . . Alert | -11 -10 -10 -9 -9 -9 -8 -8 -7 -7 -7 -7 ------- Run | Jun Mat Min Mat Min Exi Min Mat Fac Low Low Dat Peak Influence 264 | . 8 18 202 148 . 15 165 264 . . . Initial 78 | . . 3 6 78 . . . 74 . . . Average 106 | . 1 8 43 111 . 3 98 152 . . . Maximum Alert Level 1 | . . . 1 . . . . 1 . . . Low Security (%) 88 | 100 100 100 93 100 . 100 100 76 . . . Level 1 11 | . . . 6 . . . . 23 . . . Level 2 . | . . . . . . . . . . . . Level 3 . | . . . . . . . . . . . . Level 4 . | . . . . . . . . . . . . Level 5 . | . . . . . . . . . . . . High Security . | . . . . . . . . . . . . Max Security . | . . . . . . . . . . . . Squads Dispatched 4 | . . . . . . . . 4 . . . Investigation 3 | . . . . . . . . 3 . . . Extermination . | . . . . . . . . . . . . Reinforcement 1 | . . . . . . . . 1 . . . Assault . | . . . . . . . . . . . . Garrison . | . . . . . . . . . . . . Intercept . | . . . . . . . . . . . . Searches Triggered . | . . . . . . . . . . . . Construction Impeded . | . . . . . . . . . . . . Haulers Reinforced 1 | . . . . . . . . 1 . . . Active Scanning Responses . | . . . . . . . . . . . . Cargo Convoy Interrupts . | . . . . . . . . . . . . Stealth | -11 -10 -10 -9 -9 -9 -8 -8 -7 -7 -7 -7 --------- Run | Jun Mat Min Mat Min Exi Min Mat Fac Low Low Dat Distress Signals 1 | . . . 1 . . . . . . . . Communications Jammed . | . . . . . . . . . . . . Distress Signals . | . . . . . . . . . . . . Times Spotted 88 | . 3 4 16 26 . 3 11 12 5 8 . Peak Tracking Total 15 | . 3 2 15 12 . 3 9 3 5 7 . Tactical Retreats 15 | . . 1 1 4 . . 1 5 1 2 . Traps | -11 -10 -10 -9 -9 -9 -8 -8 -7 -7 -7 -7 ------- Run | Jun Mat Min Mat Min Exi Min Mat Fac Low Low Dat Traps Triggered 2 | . . . 1 . . . . 1 . . . Indirectly . | . . . . . . . . . . . . Trap Hack Attempts . | . . . . . . . . . . . . Triggered . | . . . . . . . . . . . . Disarmed . | . . . . . . . . . . . . Reprogrammed . | . . . . . . . . . . . . Reused . | . . . . . . . . . . . . Traps Extracted . | . . . . . . . . . . . . Installed . | . . . . . . . . . . . . Triggered . | . . . . . . . . . . . . Machines | -11 -10 -10 -9 -9 -9 -8 -8 -7 -7 -7 -7 ---------- Run | Jun Mat Min Mat Min Exi Min Mat Fac Low Low Dat Machines Disabled 3 | . . . . . . . . 2 . . 1 Max in Single Turn 1 | . . . . . . . . . . . 1 Machines Repaired . | . . . . . . . . . . . . Machines Sabotaged . | . . . . . . . . . . . . Overloaded Fab Kills . | . . . . . . . . . . . . Hacking | -11 -10 -10 -9 -9 -9 -8 -8 -7 -7 -7 -7 --------- Run | Jun Mat Min Mat Min Exi Min Mat Fac Low Low Dat Machines Accessed 11 | . 1 . . . 1 . . 6 . . 3 Terminals 5 | . 1 . . . . . . 4 . . . Fabricators 1 | . . . . . . . . 1 . . . Repair Stations . | . . . . . . . . . . . . Recycling Units . | . . . . . . . . . . . . Scanalyzers . | . . . . . . . . . . . . Garrison Access 1 | . . . . . . . . 1 . . . Total Hacks 37 | . 3 . . . 1 . . 16 . . 17 Successful 24 | . 1 . . . 1 . . 5 . . 17 Failed 13 | . 2 . . . . . . 11 . . . Catastrophic 3 | . 1 . . . . . . 2 . . . Database Lockouts . | . . . . . . . . . . . . Manual 15 | . 3 . . . 1 . . 11 . . . Terminals 12 | . 3 . . . . . . 9 . . . Fabricators 3 | . . . . . . . . 3 . . . Repair Stations . | . . . . . . . . . . . . Recycling Units . | . . . . . . . . . . . . Scanalyzers . | . . . . . . . . . . . . Garrison Access 4 | . . . . . . . . 4 . . . Terminal Hacks 20 | . 1 . . . 1 . . 1 . . 17 Record 2 | . . . . . . . . . . . 2 Part Schematic 8 | . . . . . . . . . . . 8 Robot Schematic 4 | . . . . . . . . . . . 4 Prototype ID Bank 3 | . . . . . . . . . . . 3 Branch Access Points 2 | . 1 . . . . . . 1 . . . EX-Prototype ID Bank 1 | . . . . . 1 . . . . . . Fabricator Hacks 1 | . . . . . . . . 1 . . . Build 1 | . . . . . . . . 1 . . . Repair Station Hacks . | . . . . . . . . . . . . Recycling Unit Hacks . | . . . . . . . . . . . . Scanalyzer . | . . . . . . . . . . . . Garrison Access Hacks . | . . . . . . . . . . . . Unauthorized Hacks 3 | . . . . . . . . 3 . . . Terminals 2 | . . . . . . . . 2 . . . Botnet 2 | . . . . . . . . 2 . . . Fabricators 1 | . . . . . . . . 1 . . . Liberate 1 | . . . . . . . . 1 . . . Repair Stations . | . . . . . . . . . . . . Recycling Units . | . . . . . . . . . . . . Scanalyzers . | . . . . . . . . . . . . Garrison Access . | . . . . . . . . . . . . Data Cores Recovered . | . . . . . . . . . . . . Used . | . . . . . . . . . . . . Hacking Detections 6 | . 1 . . . . . . 5 . . . Full Trace Events 3 | . . . . . . . . 3 . . . Feedback Events . | . . . . . . . . . . . . Feedback Blocked . | . . . . . . . . . . . . Robot Schematics Acquired 4 | . . . . . . . . . . . 4 Robots Built 2 | . . . . . . . . 2 . . . Authchips . | . . . . . . . . . . . . Time 67 | . . . . . . . . 67 . . . Total Robot Build Rating 8 | . . . . . . . . 8 . . . Part Schematics Acquired 8 | . . . . . . . . . . . 8 Parts Built . | . . . . . . . . . . . . Authchips . | . . . . . . . . . . . . Time . | . . . . . . . . . . . . Total Part Build Rating . | . . . . . . . . . . . . Parts Repaired . | . . . . . . . . . . . . Time . | . . . . . . . . . . . . Parts Recycled . | . . . . . . . . . . . . Recycled Matter . | . . . . . . . . . . . . Retrieved Matter . | . . . . . . . . . . . . Retrieved Components . | . . . . . . . . . . . . Parts Scanalyzed . | . . . . . . . . . . . . Part Schematics Acquired . | . . . . . . . . . . . . Parts Damaged . | . . . . . . . . . . . . Bothacking | -11 -10 -10 -9 -9 -9 -8 -8 -7 -7 -7 -7 ------------ Run | Jun Mat Min Mat Min Exi Min Mat Fac Low Low Dat Used RIF Installer . | . . . . . . . . . . . . Robots Hacked . | . . . . . . . . . . . . Non-combat . | . . . . . . . . . . . . Combat . | . . . . . . . . . . . . Robot Hacks Applied . | . . . . . . . . . . . . Relay Couplers Released . | . . . . . . . . . . . . Fabnet Peak Effective % . | . . . . . . . . . . . . Robots Rewired . | . . . . . . . . . . . . Allies Hacked . | . . . . . . . . . . . . Hacks Repelled . | . . . . . . . . . . . . Allies | -11 -10 -10 -9 -9 -9 -8 -8 -7 -7 -7 -7 -------- Run | Jun Mat Min Mat Min Exi Min Mat Fac Low Low Dat Total Allies 2 | . . . . . . . . 2 . . . Largest Group 2 | . . . . . . . . 2 . . . Highest-Rated Group 64 | . . . . . . . . 64 . . . Highest-Rated Ally 32 | . . . . . . . . 32 . . . Total Orders . | . . . . . . . . . . . . Ally Attacks 3 | . . . . . . . . 3 . . . Total Damage 453 | . . . . . . . . 453 . . . Kills 2 | . . . . . . . . 2 . . . Allies Corrupted . | . . . . . . . . . . . . Allies Melted . | . . . . . . . . . . . . Intel | -11 -10 -10 -9 -9 -9 -8 -8 -7 -7 -7 -7 ------- Run | Jun Mat Min Mat Min Exi Min Mat Fac Low Low Dat Robot Analysis Total . | . . . . . . . . . . . . Derelict Logs Recovered 5 | . . 1 . 1 . . . . 1 2 . Drone Launches . | . . . . . . . . . . . . Drone Recoveries . | . . . . . . . . . . . . Exploration | -11 -10 -10 -9 -9 -9 -8 -8 -7 -7 -7 -7 ------------- Run | Jun Mat Min Mat Min Exi Min Mat Fac Low Low Dat Turns Passed 1489 | 15 14 68 104 228 113 65 91 486 119 149 37 Spaces Moved 2734 | 24 28 135 184 432 210 114 171 841 238 290 67 Core 2691 | 24 28 135 184 432 210 114 171 798 238 290 67 Treads . | . . . . . . . . . . . . Legs . | . . . . . . . . . . . . Wheels . | . . . . . . . . . . . . Hover 43 | . . . . . . . . 43 . . . Flight . | . . . . . . . . . . . . Fastest Speed 50 | 50 50 50 50 50 50 50 50 50 50 50 50 Average Speed 50 | 50 50 50 50 50 50 50 50 51 50 50 50 Slowest Speed 100 | 50 50 50 50 100 50 50 50 100 50 50 50 Overloaded Moves . | . . . . . . . . . . . . Propulsion Burnouts . | . . . . . . . . . . . . Robots Hopped . | . . . . . . . . . . . . Cave-ins Triggered 1 | . . . . . . . . 1 . . . Exploration Rate (%) 42 | 3 8 51 25 88 61 42 20 24 55 60 75 Regions Visited 11 Branch Regions 7 Pre-discovered Areas 1 | . . . . . . . . . . . 1 Known Exits Taken 2 | . 1 . . . . . . 1 . . . Unknown Exits Taken 9 | 1 . 1 1 1 1 1 1 . 1 1 . Scrap Searched 7 | . . 1 . 1 . 1 . . 3 1 . Spaces Dug 19 | . . . 14 . . . . 5 . . . Terrain Destroyed 77 | . . . 14 37 . . 21 5 . . . Melee 5 | . . . . . . . . 5 . . . Projectile . | . . . . . . . . . . . . AOE 72 | . . . 14 37 . . 21 . . . . Terrain Rammed . | . . . . . . . . . . . . Walls Destroyed . | . . . . . . . . . . . . Machines Disabled . | . . . . . . . . . . . . Actions | -11 -10 -10 -9 -9 -9 -8 -8 -7 -7 -7 -7 --------- Run | Jun Mat Min Mat Min Exi Min Mat Fac Low Low Dat Total 2806 | 25 27 134 193 438 218 121 174 878 237 292 69 Wait 3 | . . . . . . . . 2 . 1 . Move 2724 | 23 27 134 183 431 209 114 170 840 237 289 67 Hop . | . . . . . . . . . . . . Pick Up 10 | . . . 5 . 4 . . 1 . . . Fast Attach 14 | 2 . . 1 1 . . . 8 . 2 . Attach 12 | . . . 1 1 3 . 1 5 . . 1 Detach 8 | . . . 1 1 . . 1 5 . . . Swap . | . . . . . . . . . . . . Drop 5 | . . . . . 2 . . 3 . . . Fire 8 | . . . 2 4 . . 2 . . . . Melee 10 | . . . . . . . . 9 . . 1 Ram 12 | . . . . . . 7 . 5 . . . Kick . | . . . . . . . . . . . . Crush . | . . . . . . . . . . . . Escape Stasis . | . . . . . . . . . . . . Rewire . | . . . . . . . . . . . . Trap . | . . . . . . . . . . . . Miscellaneous . | . . . . . . . . . . . . Route ------- -11/Junkyard -10/Materials (discovered 2 exits: *Min x2) -10/Mines -9/Materials -9/Mines (discovered 3 exits: [*Mat x2] / *Exi) -9/Exiles (discovered 2 exits: [*Min x2]) -8/Mines -8/Materials -7/Factory (discovered 2 exits: *Low x2) -7/Lower Caves -7/Lower Caves -7/Data Miner (discovered 1 exit: [*Pro]) History --------- Turn | Location | Event 2 | -11/Junkyard | Met Revision 17 8 | -11/Junkyard | Discovered new exit (range 15) 16 | -11/Junkyard | Entered Materials 27 | -10/Materials | Identified exit to Mines 30 | -10/Materials | Entered Mines 35 | -10/Mines | Met a Derelict bent on vengeance 58 | -10/Mines | Learned Materials emergency access door positions 94 | -10/Mines | Discovered new exit (range 8) 98 | -10/Mines | Entered Materials 98 | -9/Materials | Evolved 2 slots: Utility x2 196 | -9/Materials | Discovered new exit (range 14) 202 | -9/Materials | Entered Mines 226 | -9/Mines | Assembled infested the area 264 | -9/Mines | Discovered new exit (range 9) 269 | -9/Mines | Discovered new exit (range 6) 299 | -9/Mines | A weapon hastily lodged in a ceiling crevice suddenly fell to the ground 302 | -9/Mines | Build established: Mutant 357 | -9/Mines | Received a Rocket Launcher from a helpful Derelict 427 | -9/Mines | Deemed a non-threat by the Exiles lab entrance 428 | -9/Mines | Discovered new exit (range 5) 430 | -9/Mines | Entered Exiles 437 | -9/Exiles | Discovered new exit (range 15) 444 | -9/Exiles | Met 8R-AWN 451 | -9/Exiles | Met EX-HEX 465 | -9/Exiles | Met EX-BIN 473 | -9/Exiles | Aligned with FarCom system 473 | -9/Exiles | Given EX-Vault access code 487 | -9/Exiles | Opened EX-Vault 490 | -9/Exiles | Found AWS/Autocannon 493 | -9/Exiles | Found Deploy-a-Sentry 494 | -9/Exiles | Found Deploy-a-Sentry 496 | -9/Exiles | Found Deploy-a-Sentry 508 | -9/Exiles | Warned to stay clear of 0b10 Research branches 521 | -9/Exiles | Met EX-DEC 539 | -9/Exiles | Discovered new exit (range 10) 543 | -9/Exiles | Left Exiles lab with Deploy-a-Sentry 543 | -9/Exiles | Entered Mines 600 | -8/Mines | Discovered new exit (range 7) 608 | -8/Mines | Entered Materials 608 | -8/Materials | Evolved 2 slots: Power x1, Utility x1 693 | -8/Materials | Discovered new exit (range 14) 699 | -8/Materials | Entered Factory 699 | -7/Factory | Evolved 2 slots: Utility x2 851 | -7/Factory | Crushed by falling debris 1054 | -7/Factory | Fabricated Y-54 Guardian? 1101 | -7/Factory | Discovered new exit (range 16) 1135 | -7/Factory | Identified exit to Lower Caves 1180 | -7/Factory | Build established: Hacker-Mutant 1185 | -7/Factory | Entered Lower Caves 1251 | -7/Lower Caves | Learned Factory garrison access intel 1301 | -7/Lower Caves | Discovered new exit (range 8) 1304 | -7/Lower Caves | Entered another Lower Caves area 1329 | -7/Lower Caves | Encountered a Warlord checkpoint 1345 | -7/Lower Caves | Learned Factory terminal intel 1389 | -7/Lower Caves | Spotted B-75 Beast 1394 | -7/Lower Caves | Core integrity fell below 50% 1425 | -7/Lower Caves | Learned Factory emergency access door positions 1450 | -7/Lower Caves | Discovered new exit (range 7) 1453 | -7/Lower Caves | Entered Data Miner 1453 | -7/Data Miner | Discovered new exit (range 6) 1463 | -7/Data Miner | Met Data Miner 1472 | -7/Data Miner | Learned location of Section 7 (-2) 1472 | -7/Data Miner | Acquired the access code to Warlord's prototype stash 1480 | -7/Data Miner | Received God Mode back door access code from Data Miner 1488 | -7/Data Miner | Data Conduit disabled 1490 | -7/Data Miner | Self-destructed Last Messages --------------- Downloading prototype IDs... Cld. VTOL Module Exp. Weapon Shielding >>Prototype ID Bank Downloading prototype IDs... Hpw. Field Laser Ion Burst Cannon >>Prototype ID Bank Downloading prototype IDs... Gravity Neutralizer Mni. Assault Cannon Data Miner: I've just received further instructions. God Mode is nearly complete and we think you might be able to put it to better use than Warlord, so if you see an opportunity, hack it and enter \\9XKC to gain control via the back door I've installed. Now off with you. 01488_ Sneak attack on Data Miner. 01488_ Destroyed Prototype Hackware. 01488_ Data Miner system corrupted by crushing effect. 01488_ Data Miner disappears through a trap door. Map ----- +----------------------------------------------------+ | | | | | | | | | | | | | | | | | | | | | | | | | | | | | ??????????????????????????????????? | | ??????????????????????????????????? | | ??????????????????????????????????? | | ??????????????????????????????????? | | ??????????????????????????????????? | | ??????###############?????????????? | | ??????""""""""""""""######????????# | | ?????"""""""" """"""""########## | | ????""""""""" | | ???""""""" | | ???""""""" | | ???""""" @ | | ???""""""" | | ???""""""" """"""""""" | | ????""""""" """"######### | | ?????"""""" """""###???????? | | ??????""""""" "#####?????????? | | ??????######"## "#?????????????? | | ???????????#"### "#?????????????? | | ???????????#"### "#?????????????? | | ???????????#"## "#?????????????? | | ???????????#"## "#?????????????? | | ?????????????# "#?????????????? | | ?????????????### "#?????????????? | | ???????????????# "##????????????? | | ??????????????## ""#????????????? | | ?????????????## ""#????????????? | | ??????????##"#"X ""#????????????? | | ??????????""""" "####?????????? | | ??????????""""" X"""""?????????? | | ??????????##"#"X "##"#?????????? | | ???????????#?## X""""#?????????? | | ??????????????## "##"#?????????? | | ???????????????#######????????????? | | ??????????????????????????????????? | | ??????????????????????????????????? | +----------------------------------------------------+ Best States ------------- Heat Dissipation 34 Energy Generation 5 Energy Capacity 100 Matter Stores 246 Matter Capacity 300 Sight Range 16 Terrain Scan Density 10 Evasion (%) 53 Offensive Hacking 10 Defensive Hacking 30 Item Schematics ----------------- Combat Drone Bay | -7/Data Miner | Free Lgt. Regenerative Plating | -7/Data Miner | Free Cld. Cesium-ion Thruster | -7/Data Miner | Free Thermal Defense Suite | -7/Data Miner | Free Nuclear Pulse Array | -7/Data Miner | Free Imp. Recalibrator | -7/Data Miner | Free Tesla Rifle | -7/Data Miner | Free Imp. Heavy Laser | -7/Data Miner | Free Robot Schematics ------------------ S-27 Virus | -7/Data Miner | Free H-55 Commando | -7/Data Miner | Free B-48 Gladiator | -7/Data Miner | Free A-15 Conveyor | -7/Data Miner | Free Fabricated ------------ Y-54 Guardian | x2 | -7/Factory | Preloaded Alien Tech Used ----------------- None Achievements -------------- None Challenges ------------ None Game ------ Seed VisualFrostBeamcaster Manual? 0 Play Time 00:16:59 Cumulative 175.1 hours Start 2023.05.05 @ 07:42:40 End 2023.05.05 @ 07:59:17 Sessions 1 Manual Loads 0 Difficulty Rogue Special Mode None Game No. 522 Rogue 522 Adventurer 0 Explorer 0 Win Type - Total 8 Types 7/0/0/1/0/0/0/0/0 Lore% 71 Gallery% 74 Achievement% 65 Wizard Run 0 Options --------- ASCII 0 Keyboard 0 Movement Numpad Keybinds 0 Fullscreen 1 Font 16/SmallcapsGlow Map View 75x55 Tactical HUD 1 Map Filters NONE Filters NONE Steam 1 RUN: 8a8fb513-fac5-4ceb-908f-36847995a1a1